fUST/lending_fUST_20240824
["ID","MTS","AMOUNT","RATE_DAILY","PERIOD"]
[335703606,1724454551420,-2167.07978808,0.00012629,2]
[335703607,1724454551440,-2283.38976069,0.00012782,3]
[335703608,1724454551474,-811.71027722,0.00012782,2]
[335703609,1724454551498,-894.99754113,0.00012898,2]
[335703610,1724454551519,-154.72922386,0.00012898,2]
[335703611,1724454551540,-243.69185787,0.00012971,2]
[335703612,1724454551562,-421.44575686,0.00012971,2]
[335703613,1724454551581,-274.9204361,0.00012971,2]
[335703614,1724454551601,-520.86090941,0.00012971,2]
[335703615,1724454551622,-234.08597528,0.00012971,2]
[335703616,1724454560221,-178.56738232,0.00012971,2]
[335703617,1724454560243,-405.57594711,0.00012971,2]
[335703618,1724454560264,-535.06078951,0.00012971,2]
[335703619,1724454560284,-160.50654328,0.00012971,2]
[335703620,1724454560304,-196.7520803,0.00012971,2]
[335703621,1724454560326,-210.32349268,0.00012971,2]
[335703622,1724454560351,-729.9682711,0.00012985,2]
[335703623,1724454560373,-400.1912372,0.00012985,2]
[335703624,1724454560394,-155.12237616,0.00012985,2]
[335703625,1724454560415,-288.40254199,0.00012985,2]
[335703626,1724454560435,-492.87003957,0.00012985,2]
[335703627,1724454560457,-155.61647953,0.00012989,2]
[335703628,1724454560478,-309.39667648,0.00012989,2]
[335703629,1724454560501,-358.17798233,0.00012989,2]
[335703630,1724454560522,-252.2665635,0.00012991,2]
[335703631,1724454560543,-500.0,0.00013,2]
[335703632,1724454560563,-500.0,0.00013,2]
[335703633,1724454560585,-500.0,0.00013,2]
[335703634,1724454560604,-400.0,0.00013,2]
[335703635,1724454560625,-986.36191411,0.00013333,2]
[335703636,1724454560649,-154.72922386,0.00013497,2]
[335703637,1724454560672,-302.31593733,0.00013548,2]
[335703638,1724454560692,-500.0,0.00013548,2]
[335703639,1724454560715,-303.97484667,0.00013688,2]
[335703640,1724454560740,-695.73818401,0.00013698,2]
[335703641,1724454560763,-238.647521,0.00013699,2]
[335703642,1724454560783,-3000.0,0.00013699,2]
[335703643,1724454560802,-248.29697074,0.00013699,2]
[335703644,1724454560823,-155.10613223,0.00013792,2]
[335703645,1724454560845,-2713.40505829,0.00013971,2]
[335703646,1724454560866,-3390.8337403,0.00014074,2]
[335703647,1724454560888,-9171.54539007,0.00014085,2]
[335703648,1724454560907,-154.72922386,0.00014116,2]
[335703649,1724454560927,-973.45286865,0.00014245,2]
[335703650,1724454560947,-646.0716477,0.00014245,2]
[335703651,1724454560979,-553.756645,0.00014247,2]
[335703652,1724454560999,-166.814257,0.00014247,2]
[335703653,1724454561019,-452.63918642,0.00014494,2]
[335703654,1724454561039,-500.0,0.00015257,2]
[335703655,1724454561059,-2346.54220829,0.00015722,2]
[335703656,1724454561078,-500.0,0.00016059,2]
[335703657,1724454561098,-500.0,0.00016438,2]
[335703658,1724454561119,-3390.83374028,0.00016766,2]
[335703660,1724454561139,-255.40048619,0.00016862,2]
[335703661,1724454567103,-155.18235923,0.00012971,2]
[335703662,1724454567126,-43.61115098,0.00013596,2]
[335703663,1724454572379,-111.55593006,0.00013596,2]
[335703664,1724454572399,-932.81,0.00013698,2]
[335703665,1724454572420,-3972.53,0.00013698,2]
[335703666,1724454572440,-1760.67,0.00013792,2]
[335703667,1724454572461,-389.40762411,0.0001387,2]
[335703668,1724454572484,-932.81,0.00013972,2]
[335703669,1724454572510,-1760.67,0.00014066,2]
[335703670,1724454572535,-932.81,0.00014246,2]
[335703671,1724454572560,-1760.67,0.00014339,2]
[335703672,1724454572583,-317.23875848,0.0001452,2]
[335703673,1724454574118,-974.94,0.00013792,2]
[335703674,1724454574141,-3972.53,0.00013972,2]
[335703675,1724454574163,-974.94,0.00014066,2]
[335703676,1724454574184,-3972.53,0.00014246,2]
[335703677,1724454574205,-974.94,0.00014339,2]
[335703678,1724454574228,-615.57124152,0.0001452,2]
[335703679,1724454574250,-3972.53,0.0001452,2]
[335703680,1724454574271,-1760.67,0.00014613,2]
[335703681,1724454574292,-974.94,0.00014613,2]
[335703682,1724454574313,-932.81,0.00014794,2]
[335703683,1724454574334,-3972.53,0.00014794,2]
[335703684,1724454574354,-1760.67,0.00014887,2]
[335703685,1724454574375,-974.94,0.00014887,2]
[335703686,1724454574397,-932.81,0.00015068,2]
[335703687,1724454574419,-3972.53,0.00015068,2]
[335703688,1724454574442,-1760.67,0.00015161,2]
[335703689,1724454574464,-974.94,0.00015161,2]
[335703690,1724454574490,-932.81,0.00015342,2]
[335703691,1724454574515,-3972.53,0.00015342,2]
[335703692,1724454574539,-1760.67,0.00015435,2]
[335703693,1724454574563,-932.81,0.00015616,2]
[335703694,1724454574588,-1760.67,0.00015709,2]
[335703695,1724454574609,-932.81,0.0001589,2]
[335703696,1724454574632,-1760.67,0.00015983,2]
[335703697,1724454574655,-932.81,0.00016164,2]
[335703698,1724454574677,-664.00184694,0.00016257,2]
[335703762,1724454632426,-300.0,0.00013697,2]
[335703763,1724454632436,-500.0,0.00013698,2]
[335703764,1724454632445,-753.32,0.00013698,2]
[335703765,1724454632454,-648.93,0.00013698,2]
[335703766,1724454632464,-761.07263713,0.00013698,2]
[335703768,1724454638183,-1629.40736287,0.00013698,2]
[335703771,1724454638194,-847.44,0.00013698,2]
[335703773,1724454638204,-895.66,0.00013698,2]
[335703774,1724454638215,-500.0,0.00013698,2]
[335703777,1724454638225,-286.46640701,0.00013698,2]
[335703780,1724454638236,-500.0,0.00013698,2]
[335703781,1724454638246,-500.0,0.00013698,2]
[335703782,1724454638255,-0.96844998,0.00013698,2]
[335703783,1724454638268,-499.03155002,0.00013698,2]
[335703784,1724454638277,-500.0,0.00013698,2]
[335703785,1724454638292,-500.0,0.00013698,2]
[335703786,1724454638302,-500.0,0.00013698,2]
[335703787,1724454638313,-2319.0,0.00013698,2]
[335703788,1724454638323,-500.0,0.00013698,2]
[335703789,1724454638332,-14508.24,0.00013698,2]
[335703790,1724454638341,-630.69,0.00013698,2]
[335703791,1724454638352,-500.0,0.00013698,2]
[335703792,1724454638361,-500.0,0.00013698,2]
[335703793,1724454638371,-1052.54,0.00013698,2]
[335703794,1724454638380,-500.0,0.00013698,2]
[335703795,1724454638390,-500.0,0.00013698,2]
[335703796,1724454638400,-500.0,0.00013698,2]
[335703797,1724454638415,-21503.01,0.00013698,2]
[335703798,1724454638425,-500.0,0.00013698,2]
[335703799,1724454638435,-1095.81,0.00013698,2]
[335703800,1724454638444,-2089.85,0.00013698,2]
[335703801,1724454638454,-1470.86562557,0.00013698,2]
[335703802,1724454638755,-4298.68019956,0.00013698,2]
[335703803,1724454638769,-1157.80417487,0.00013698,2]
[335703804,1724454638781,-451.33411107,0.00013698,2]
[335703805,1724454638791,-500.0,0.00013698,2]
[335703806,1724454638801,-506.04598366,0.00013698,2]
[335703807,1724454638810,-500.0,0.00013698,2]
[335703808,1724454638820,-500.0,0.00013698,2]
[335703809,1724454638829,-2207.51,0.00013698,2]
[335703810,1724454638839,-500.0,0.00013698,2]
[335703811,1724454638849,-722.01,0.00013698,2]
[335703812,1724454638859,-500.0,0.00013698,2]
[335703813,1724454638870,-1315.72,0.00013698,2]
[335703814,1724454638880,-500.0,0.00013698,2]
[335703815,1724454638890,-500.0,0.00013698,2]
[335703816,1724454638900,-529.86,0.00013698,2]
[335703817,1724454638910,-2055.89,0.00013698,2]
[335703818,1724454638920,-500.0,0.00013698,2]
[335703819,1724454638931,-1488.96,0.00013698,2]
[335703820,1724454638942,-524.15852355,0.00013698,2]
[335703821,1724454638953,-500.0,0.00013698,2]
[335703822,1724454638963,-500.0,0.00013698,2]
[335703823,1724454638973,-500.0,0.00013698,2]
[335703824,1724454638983,-986.58,0.00013698,2]
[335703825,1724454638993,-500.0,0.00013698,2]
[335703826,1724454639003,-291.90426165,0.00013698,2]
[335703827,1724454639014,-500.0,0.00013699,2]
[335703828,1724454639024,-500.0,0.00013699,2]
[335703829,1724454639037,-500.0,0.00013699,2]
[335703830,1724454639047,-500.0,0.00013699,2]
[335703831,1724454639057,-500.0,0.00013699,2]
[335703832,1724454639071,-164.36760958,0.00013699,2]
[335703833,1724454639082,-500.0,0.00013699,2]
[335703834,1724454639091,-500.0,0.00013699,2]
[335703835,1724454639101,-500.0,0.00013699,2]
[335703836,1724454639111,-500.0,0.00013699,2]
[335703837,1724454639121,-500.0,0.00013699,2]
[335703839,1724454639131,-500.0,0.00013699,2]
[335703840,1724454639429,-500.0,0.00013699,2]
[335703841,1724454639439,-500.0,0.00013699,2]
[335703842,1724454639449,-500.0,0.00013699,2]
[335703843,1724454639459,-500.0,0.00013699,2]
[335703844,1724454639468,-500.0,0.00013699,2]
[335703845,1724454639478,-500.0,0.00013699,2]
[335703846,1724454639487,-500.0,0.00013699,2]
[335703847,1724454639497,-500.0,0.00013699,2]
[335703848,1724454639506,-500.0,0.00013699,2]
[335703849,1724454639519,-500.0,0.00013699,2]
[335703850,1724454639528,-500.0,0.00013699,2]
[335703851,1724454639538,-500.0,0.00013792,2]
[335703852,1724454639547,-2910.55,0.00013792,2]
[335703854,1724454639558,-2262.95,0.0001387,2]
[335703855,1724454639568,-3290.49,0.0001387,2]
[335703856,1724454639577,-2416.04,0.0001387,2]
[335703857,1724454639587,-500.0,0.0001387,2]
[335703858,1724454639598,-13081.0,0.0001387,2]
[335703859,1724454639608,-2171.54,0.0001387,2]
[335703860,1724454639617,-1458.33,0.0001387,2]
[335703861,1724454639627,-3421.28,0.0001387,2]
[335703862,1724454639637,-500.0,0.00013972,2]
[335703863,1724454639647,-753.32,0.00013972,2]
[335703864,1724454639657,-648.93,0.00013972,2]
[335703865,1724454639667,-2390.48,0.00013972,2]
[335703866,1724454639677,-847.44,0.00013972,2]
[335703867,1724454639686,-895.66,0.00013972,2]
[335703868,1724454639695,-500.0,0.00013972,2]
[335703869,1724454639705,-500.0,0.00013972,2]
[335703870,1724454639715,-500.0,0.00013972,2]
[335703871,1724454639725,-500.0,0.00013972,2]
[335703872,1724454639735,-500.0,0.00013972,2]
[335703873,1724454639746,-500.0,0.00013972,2]
[335703874,1724454639757,-2319.0,0.00013972,2]
[335703875,1724454639767,-500.0,0.00013972,2]
[335703876,1724454639777,-14508.24,0.00013972,2]
[335703877,1724454639792,-630.69,0.00013972,2]
[335703878,1724454639802,-500.0,0.00013972,2]
[335703879,1724454639811,-500.0,0.00013972,2]
[335703880,1724454639821,-1052.54,0.00013972,2]
[335703881,1724454639830,-500.0,0.00013972,2]
[335703882,1724454639839,-500.0,0.00013972,2]
[335703883,1724454639849,-21503.01,0.00013972,2]
[335703884,1724454639859,-504.73448042,0.00013972,2]
[335703885,1724454639869,-1095.81,0.00013972,2]
[335703886,1724454639885,-2089.85,0.00013972,2]
[335703887,1724454639902,-6927.35,0.00013972,2]
[335703888,1724454639914,-500.0,0.00013972,2]
[335703889,1724454639924,-500.0,0.00013972,2]
[335703890,1724454639935,-500.0,0.00013972,2]
[335703891,1724454639949,-2207.51,0.00013972,2]
[335703892,1724454639963,-500.0,0.00013972,2]
[335703893,1724454639974,-722.01,0.00013972,2]
[335703894,1724454639984,-500.0,0.00013972,2]
[335703895,1724454639995,-1315.72,0.00013972,2]
[335703896,1724454640010,-500.0,0.00013972,2]
[335703897,1724454640020,-500.0,0.00013972,2]
[335703898,1724454640032,-529.86,0.00013972,2]
[335703899,1724454640042,-2055.89,0.00013972,2]
[335703900,1724454640053,-500.0,0.00013972,2]
[335703901,1724454640063,-500.0,0.00013972,2]
[335703902,1724454640073,-986.58,0.00013972,2]
[335703903,1724454640083,-500.0,0.00013972,2]
[335703904,1724454640094,-500.0,0.00014066,2]
[335703905,1724454640104,-2910.55,0.00014066,2]
[335703906,1724454640114,-2262.95,0.00014144,2]
[335703907,1724454640124,-3290.49,0.00014144,2]
[335703908,1724454640135,-2416.04,0.00014144,2]
[335703909,1724454640145,-500.0,0.00014144,2]
[335703910,1724454640155,-13081.0,0.00014144,2]
[335703911,1724454640165,-2171.54,0.00014144,2]
[335703912,1724454640175,-1458.33,0.00014144,2]
[335703913,1724454640185,-3421.28,0.00014144,2]
[335703914,1724454640195,-238.6475229,0.00014217,2]
[335703915,1724454640206,-260.29490438,0.00014245,2]
[335703916,1724454640217,-153.9098381,0.00014245,2]
[335703917,1724454640228,-500.0,0.00014245,2]
[335703918,1724454640239,-500.0,0.00014245,2]
[335703919,1724454640250,-394.40077718,0.00014245,2]
[335703920,1724454640261,-500.0,0.00014245,2]
[335703921,1724454640271,-500.0,0.00014245,2]
[335703922,1724454640281,-375.14958253,0.00014245,2]
[335703923,1724454640291,-500.0,0.00014245,2]
[335703924,1724454640302,-500.0,0.00014245,2]
[335703925,1724454640312,-500.0,0.00014245,2]
[335703926,1724454640321,-500.0,0.00014245,2]
[335703927,1724454640331,-500.0,0.00014245,2]
[335703928,1724454640342,-500.0,0.00014246,2]
[335703929,1724454640352,-753.32,0.00014246,2]
[335703930,1724454640362,-648.93,0.00014246,2]
[335703931,1724454640372,-2390.48,0.00014246,2]
[335703932,1724454640383,-847.44,0.00014246,2]
[335703933,1724454640393,-895.66,0.00014246,2]
[335703934,1724454640403,-500.0,0.00014246,2]
[335703935,1724454640412,-500.0,0.00014246,2]
[335703936,1724454640422,-500.0,0.00014246,2]
[335703937,1724454640433,-500.0,0.00014246,2]
[335703938,1724454640444,-500.0,0.00014246,2]
[335703939,1724454640454,-500.0,0.00014246,2]
[335703940,1724454640464,-2319.0,0.00014246,2]
[335703941,1724454640474,-500.0,0.00014246,2]
[335703942,1724454640484,-14508.24,0.00014246,2]
[335703943,1724454640494,-630.69,0.00014246,2]
[335703944,1724454640503,-500.0,0.00014246,2]
[335703945,1724454640515,-464.04485381,0.00014246,2]
[335703946,1724454640526,-1052.54,0.00014246,2]
[335703947,1724454640537,-500.0,0.00014246,2]
[335703948,1724454640547,-500.0,0.00014246,2]
[335703949,1724454640557,-21503.01,0.00014246,2]
[335703950,1724454640567,-1095.81,0.00014246,2]
[335703951,1724454640579,-2089.85,0.00014246,2]
[335703952,1724454640590,-6927.35,0.00014246,2]
[335703953,1724454640602,-500.0,0.00014246,2]
[335703954,1724454640612,-460.09967394,0.00014246,2]
[335703955,1724454640622,-500.0,0.00014246,2]
[335703956,1724454640631,-2207.51,0.00014246,2]
[335703957,1724454640641,-500.0,0.00014246,2]
[335703958,1724454640652,-722.01,0.00014246,2]
[335703959,1724454640662,-500.0,0.00014246,2]
[335703960,1724454640672,-1315.72,0.00014246,2]
[335703961,1724454640682,-500.0,0.00014246,2]
[335703962,1724454640691,-279.88683784,0.00014246,2]
[335703963,1724454640703,-529.86,0.00014246,2]
[335703964,1724454640713,-2055.89,0.00014246,2]
[335703965,1724454640723,-500.0,0.00014246,2]
[335703966,1724454640734,-506.45474192,0.00014246,2]
[335703967,1724454640744,-986.58,0.00014246,2]
[335703968,1724454640754,-500.0,0.00014246,2]
[335703969,1724454640764,-500.0,0.00014339,2]
[335703970,1724454640774,-2910.55,0.00014339,2]
[335703971,1724454640785,-2262.95,0.00014418,2]
[335703972,1724454640795,-3290.49,0.00014418,2]
[335703973,1724454640804,-2416.04,0.00014418,2]
[335703974,1724454640814,-500.0,0.00014418,2]
[335703975,1724454640824,-13081.0,0.00014418,2]
[335703976,1724454640834,-2171.54,0.00014418,2]
[335703977,1724454640844,-1458.33,0.00014418,2]
[335703978,1724454640854,-3421.28,0.00014418,2]
[335703979,1724454640865,-500.0,0.00014518,2]
[335703980,1724454640875,-1023.1,0.00014518,2]
[335703981,1724454640885,-500.0,0.00014518,2]
[335703982,1724454640894,-500.0,0.00014518,2]
[335703983,1724454640904,-500.0,0.00014518,2]
[335703984,1724454640914,-500.0,0.0001452,2]
[335703985,1724454640924,-753.32,0.0001452,2]
[335703986,1724454640934,-648.93,0.0001452,2]
[335703987,1724454640944,-2390.48,0.0001452,2]
[335703988,1724454640955,-847.44,0.0001452,2]
[335703989,1724454640964,-895.66,0.0001452,2]
[335703990,1724454640975,-298.12779295,0.0001452,2]
[335703991,1724454640985,-500.0,0.0001452,2]
[335703992,1724454640994,-257.19777599,0.0001452,2]
[335703993,1724454641004,-500.0,0.0001452,2]
[335703994,1724454641014,-500.0,0.0001452,2]
[335703995,1724454641024,-500.0,0.0001452,2]
[335703996,1724454641034,-2319.0,0.0001452,2]
[335703997,1724454641044,-500.0,0.0001452,2]
[335703998,1724454641053,-14508.24,0.0001452,2]
[335703999,1724454641063,-630.69,0.0001452,2]
[335704000,1724454641072,-1052.54,0.0001452,2]
[335704001,1724454641082,-500.0,0.0001452,2]
[335704002,1724454641091,-500.0,0.0001452,2]
[335704003,1724454641101,-21503.01,0.0001452,2]
[335704004,1724454641111,-1095.81,0.0001452,2]
[335704005,1724454641120,-2089.85,0.0001452,2]
[335704006,1724454641130,-6927.35,0.0001452,2]
[335704007,1724454641140,-500.0,0.0001452,2]
[335704008,1724454641150,-500.0,0.0001452,2]
[335704009,1724454641160,-2207.51,0.0001452,2]
[335704010,1724454641170,-500.0,0.0001452,2]
[335704011,1724454641180,-722.01,0.0001452,2]
[335704012,1724454641190,-500.0,0.0001452,2]
[335704013,1724454641200,-1315.72,0.0001452,2]
[335704014,1724454641209,-500.0,0.0001452,2]
[335704015,1724454641220,-529.86,0.0001452,2]
[335704016,1724454641230,-2055.89,0.0001452,2]
[335704017,1724454641239,-500.0,0.0001452,2]
[335704018,1724454641249,-986.58,0.0001452,2]
[335704019,1724454641259,-151.47808176,0.0001452,2]
[335704020,1724454641269,-500.0,0.00014613,2]
[335704021,1724454641278,-2910.55,0.00014613,2]
[335704022,1724454641289,-2262.95,0.00014692,2]
[335704023,1724454641299,-3290.49,0.00014692,2]
[335704024,1724454641308,-2416.04,0.00014692,2]
[335704025,1724454641319,-500.0,0.00014692,2]
[335704026,1724454641329,-13081.0,0.00014692,2]
[335704027,1724454641339,-2171.54,0.00014692,2]
[335704028,1724454641349,-1458.33,0.00014692,2]
[335704029,1724454641360,-3421.28,0.00014692,2]
[335704030,1724454641370,-500.0,0.00014792,2]
[335704031,1724454641380,-1023.1,0.00014792,2]
[335704032,1724454641390,-505.32442441,0.00014792,2]
[335704033,1724454641399,-500.0,0.00014792,2]
[335704034,1724454641409,-500.0,0.00014792,2]
[335704035,1724454641419,-500.0,0.00014794,2]
[335704036,1724454641430,-753.32,0.00014794,2]
[335704037,1724454641441,-648.93,0.00014794,2]
[335704038,1724454641451,-2390.48,0.00014794,2]
[335704039,1724454641462,-847.44,0.00014794,2]
[335704040,1724454641473,-895.66,0.00014794,2]
[335704041,1724454641483,-500.0,0.00014794,2]
[335704042,1724454641493,-500.0,0.00014794,2]
[335704043,1724454641503,-500.0,0.00014794,2]
[335704044,1724454641515,-2319.0,0.00014794,2]
[335704045,1724454641525,-500.0,0.00014794,2]
[335704046,1724454641536,-14508.24,0.00014794,2]
[335704047,1724454641557,-630.69,0.00014794,2]
[335704048,1724454641567,-1052.54,0.00014794,2]
[335704049,1724454641576,-500.0,0.00014794,2]
[335704050,1724454641587,-500.0,0.00014794,2]
[335704051,1724454641598,-21503.01,0.00014794,2]
[335704052,1724454641608,-1095.81,0.00014794,2]
[335704053,1724454641618,-2089.85,0.00014794,2]
[335704054,1724454641627,-6927.35,0.00014794,2]
[335704055,1724454641637,-500.0,0.00014794,2]
[335704056,1724454641648,-500.0,0.00014794,2]
[335704057,1724454641658,-2207.51,0.00014794,2]
[335704058,1724454641668,-500.0,0.00014794,2]
[335704059,1724454641678,-722.01,0.00014794,2]
[335704060,1724454641688,-500.0,0.00014794,2]
[335704061,1724454641697,-1315.72,0.00014794,2]
[335704062,1724454641707,-500.0,0.00014794,2]
[335704063,1724454641716,-529.86,0.00014794,2]
[335704064,1724454641726,-2055.89,0.00014794,2]
[335704065,1724454641736,-500.0,0.00014794,2]
[335704066,1724454641746,-986.58,0.00014794,2]
[335704067,1724454641756,-500.0,0.00014887,2]
[335704068,1724454641765,-2910.55,0.00014887,2]
[335704069,1724454641775,-2262.95,0.00014966,2]
[335704070,1724454641789,-3290.49,0.00014966,2]
[335704071,1724454641799,-2416.04,0.00014966,2]
[335704072,1724454641809,-500.0,0.00014966,2]
[335704073,1724454641819,-13081.0,0.00014966,2]
[335704074,1724454641830,-2171.54,0.00014966,2]
[335704075,1724454641839,-1458.33,0.00014966,2]
[335704076,1724454641851,-3421.28,0.00014966,2]
[335704077,1724454641861,-500.0,0.00015066,2]
[335704078,1724454641871,-1023.1,0.00015066,2]
[335704079,1724454641881,-500.0,0.00015066,2]
[335704080,1724454641890,-500.0,0.00015066,2]
[335704081,1724454641900,-420.0,0.00015067,2]
[335704082,1724454641910,-500.0,0.00015068,2]
[335704083,1724454641921,-753.32,0.00015068,2]
[335704084,1724454641930,-648.93,0.00015068,2]
[335704085,1724454641940,-2390.48,0.00015068,2]
[335704086,1724454641950,-847.44,0.00015068,2]
[335704087,1724454641959,-895.66,0.00015068,2]
[335704088,1724454641969,-500.0,0.00015068,2]
[335704089,1724454641978,-500.0,0.00015068,2]
[335704090,1724454641987,-500.0,0.00015068,2]
[335704091,1724454641998,-2319.0,0.00015068,2]
[335704092,1724454642008,-500.0,0.00015068,2]
[335704093,1724454642017,-630.69,0.00015068,2]
[335704094,1724454642027,-14508.24,0.00015068,2]
[335704095,1724454642037,-1052.54,0.00015068,2]
[335704096,1724454642047,-500.0,0.00015068,2]
[335704097,1724454642057,-500.0,0.00015068,2]
[335704098,1724454642066,-2656.26497794,0.00015068,2]
[335704261,1724454673544,40594.567908,0.00027,120]
[335704265,1724454905178,1179.97,0.00027,120]
[335704267,1724455058366,17723.68861191,0.00027,120]
[335704272,1724455164692,173.99065228,0.00013696,7]
[335704287,1724455631113,-300.0,0.00012121,2]
[335704288,1724455631135,-300.0,0.00012121,2]
[335704289,1724455631158,-338.08570417,0.00012122,2]
[335704290,1724455641094,-716.8774332,0.00012122,2]
[335704291,1724455651103,-151.29313335,0.00012122,2]
[335704305,1724455729010,2193.80103754,0.00012021,2]
[335704309,1724455747120,-300.0,0.00012121,2]
[335704310,1724455747141,-300.0,0.00012121,2]
[335704311,1724455747163,-8358.35286097,0.00012122,2]
[335704312,1724455748281,-15335.39086831,0.00012122,2]
[335704313,1724455748304,-1169.15758741,0.00012122,2]
[335704314,1724455748326,-396.38973895,0.000123,2]
[335704315,1724455748348,-210.708064,0.0001267,2]
[335704316,1724455748374,-210.708064,0.00012705,2]
[335704317,1724455748396,-210.708064,0.0001274,2]
[335704318,1724455748419,-210.708064,0.00012774,2]
[335704319,1724455748439,-1767.10106411,0.00012779,2]
[335704320,1724455748460,-2713.66408099,0.00012782,2]
[335704321,1724455748483,-210.708064,0.00012809,2]
[335704322,1724455748504,-210.708064,0.00012844,2]
[335704323,1724455748526,-210.708064,0.00012879,2]
[335704324,1724455748547,-520.19362778,0.00012898,2]
[335704325,1724455748569,-9008.00630102,0.000129,2]
[335704326,1724455748592,-210.708064,0.00012913,2]
[335704327,1724455748624,-422.4892741,0.00012934,2]
[335704328,1724455748649,-210.708064,0.00012948,2]
[335704329,1724455748672,-210.708064,0.00012983,2]
[335704330,1724455748692,-3093.89381195,0.00012985,2]
[335704331,1724455748713,-569.78751732,0.00012985,2]
[335704332,1724455748734,-202.85052062,0.00012989,2]
[335704333,1724455748754,-1500.0,0.00012989,2]
[335704334,1724455748775,-729.07882833,0.00012999,2]
[335704335,1724455748796,-790.02023813,0.00012999,2]
[335704336,1724455748819,-210.708064,0.00013018,2]
[335704337,1724455748846,-190.14748204,0.00013025,2]
[335704338,1724455748873,-156.36845768,0.00013025,2]
[335704339,1724455748893,-521.54236624,0.00013051,2]
[335704340,1724455748914,-223.61425434,0.00013051,2]
[335704341,1724455748936,-861.53597601,0.00013051,2]
[335704342,1724455748960,-203.21346943,0.00013051,2]
[335704343,1724455748983,-210.708064,0.00013052,2]
[335704344,1724455749006,-210.708064,0.00013087,2]
[335704345,1724455749030,-210.708064,0.00013122,2]
[335704346,1724455749052,-210.708064,0.00013157,2]
[335704347,1724455749078,-210.708064,0.00013191,2]
[335704348,1724455749101,-210.708064,0.00013226,2]
[335704349,1724455749123,-210.708064,0.00013261,2]
[335704350,1724455749145,-397.57546869,0.00013295,2]
[335704351,1724455749166,-210.708064,0.00013296,2]
[335704352,1724455749187,-420.0,0.00013304,2]
[335704353,1724455749209,-210.708064,0.0001333,2]
[335704354,1724455749229,-420.0,0.00013333,2]
[335704355,1724455749464,-155.24147814,0.00013333,2]
[335704356,1724455749486,-290.65712697,0.00013333,2]
[335704357,1724455749506,-210.32349268,0.00013333,2]
[335704358,1724455749527,-265.39493082,0.00013333,2]
[335704359,1724455749548,-544.22652236,0.00013477,2]
[335704360,1724455749567,-156.91314124,0.00013477,2]
[335704361,1724455749587,-863.01694501,0.00013496,2]
[335704362,1724455749609,-188.56371582,0.00013497,2]
[335704363,1724455749629,-7016.11825558,0.00013596,2]
[335704364,1724455749650,-3621.9835855,0.00013598,2]
[335704365,1724455749671,-60725.92506029,0.00013598,2]
[335704366,1724455749692,-495.34936838,0.00013599,2]
[335704367,1724455749712,-500.0,0.00013673,2]
[335704368,1724455749732,-500.0,0.00013673,2]
[335704369,1724455749753,-170.26020023,0.00013673,2]
[335704370,1724455749774,-500.0,0.00013673,2]
[335704371,1724455749796,-316.31491304,0.00013688,2]
[335704372,1724455749822,-346.64449854,0.00013688,2]
[335704373,1724455749849,-934.16422127,0.00013697,2]
[335704374,1724455749872,-500.0,0.00013698,2]
[335704375,1724455749897,-500.0,0.00013698,2]
[335704376,1724455749920,-500.0,0.00013698,2]
[335704377,1724455749945,-500.0,0.00013698,2]
[335704378,1724455749967,-529.8509849,0.00013698,2]
[335704379,1724455749990,-267.92875898,0.00013698,2]